bitfinex-derivatives/quotes_SOLF0:USTF0_20250904
["timestamp","ask_amount","ask_price","bid_price","bid_amount"]
[1756944786224,0.02983905,211.39,211.34,3.91594319]
[1756944786722,317.72,211.5,211.34,3.91594319]
[1756944786723,317.8,211.63,211.35,4.03]
[1756944786924,7.21,211.53,211.4,4.03]
[1756944787222,7.21,211.53,211.4,3.91594319]
[1756944787421,7.21,211.53,211.43,4.03]
[1756944788017,7.21,211.53,211.46,0.03256831]
[1756944791424,7.21,211.53,211.46,4.06256831]
[1756944794234,7.28,211.59,211.46,4.06256831]
[1756944794426,7.28,211.59,211.47,4.02]
[1756944794929,7.28,211.59,211.51,0.0327421]
[1756944799735,7.28,211.59,211.52,4.02]
[1756944800136,7.28,211.69,211.52,7.92641163]
[1756944800332,7.28,211.69,211.53,4.02]
[1756944800735,7.28,211.69,211.59,0.03343588]
[1756944801937,11.53,211.69,211.59,0.03343588]
[1756944803035,7.28,211.69,211.59,0.03343588]
[1756944804133,5.32114229,211.81,211.6,4.5]
[1756944804332,7.28,211.8,211.6,3.90641163]
[1756944804534,7.28,211.8,211.59,0.03343588]
[1756944804535,7.28,211.8,211.62,4.02]
[1756944804735,7.28,211.83,211.69,4.02]
[1756944805433,7.28,211.83,211.74,0.03583767]
[1756944806543,11.5273,211.83,211.74,0.03583767]
[1756944807137,7.28,211.8,211.74,0.03583767]
[1756944807536,7.28,211.8,211.64,4.02]
[1756944807936,54.9,211.81,211.64,4.02]
[1756944807937,7.28,211.73,211.64,4.02]
[1756944808433,0.03576208,211.74,211.59,4.06]
[1756944808740,7.28,211.73,211.59,4.06]
[1756944808942,0.0345323,211.69,211.59,4.06]
[1756944818148,7.28,211.74,211.63,4.06]
[1756944818650,152.16597506,211.91,211.63,4.06]
[1756944818850,92.38,211.9,211.63,4.06]
[1756944819358,92.38,211.9,211.61,3.90641163]
[1756944819359,7.28,211.85,211.74,0.03564624]
[1756944819753,7.28,211.85,211.7,4.06]
[1756944820050,7.28,211.85,211.77,0.0303276]
[1756944822956,4.247,211.84,211.77,0.0303276]
[1756944823157,7.6,211.83,211.77,0.0303276]
[1756944824053,11.8472,211.83,211.77,0.0303276]
[1756944824947,7.6,211.83,211.77,0.0303276]
[1756944826957,8.08,211.83,211.69,4.05]
[1756944827159,7.6,211.78,211.69,4.05]
[1756944828963,117.92,211.88,211.64,4.08]
[1756944828964,7.6,211.76,211.64,4.08]
[1756944829760,7.6,211.73,211.61,4.08]
[1756944831564,4.2485,211.77,211.61,4.08]
[1756944831565,7.6,211.77,211.61,4.08]
[1756944832154,7.6,211.77,211.61,3.90641163]
[1756944832360,7.6,211.77,211.62,4.08]
[1756944833155,7.6,211.77,211.6,5.44]
[1756944833156,7.6,211.77,211.63,3.90641163]
[1756944833354,7.6,211.77,211.64,4.08]
[1756944834062,7.6,211.77,211.64,3.90641163]
[1756944834267,7.6,211.77,211.65,4.08]
[1756944835859,7.6,211.77,211.66,4.08]
[1756944840671,7.6,211.85,211.68,7.98641163]
[1756944840868,7.6,211.85,211.69,4.08]
[1756944841164,7.6,211.85,211.68,3.90641163]
[1756944841165,7.6,211.85,211.71,7.98641163]
[1756944841365,7.6,211.85,211.71,4.08]
[1756944841566,11.847,211.85,211.71,4.08]
[1756944842166,11.847,211.85,211.71,7.98641163]
[1756944842670,7.6,211.82,211.71,4.08]
[1756944844170,7.6,211.82,211.71,7.98641163]
[1756944844372,7.6,211.82,211.71,4.08]
[1756944844869,7.6,211.82,211.71,7.98641163]
[1756944847278,7.6,211.8,211.7,3.90641163]
[1756944850779,7.6,211.8,211.71,3.90641163]
[1756944851775,7.6,211.8,211.7,3.90641163]
[1756944852878,7.6,211.8,211.7,7.98641163]
[1756944853078,7.6,211.8,211.71,3.90641163]
[1756944855983,7.6,211.8,211.72,3.90641163]
[1756944859082,7.6,211.8,211.72,7.98641163]
[1756944859285,7.6,211.8,211.73,3.90641163]
[1756944862282,7.6,211.8,211.74,3.90641163]
[1756944863883,7.6,211.8,211.74,7.98641163]
[1756944865789,7.39,211.84,211.75,3.90641163]
[1756944865990,7.39,211.84,211.74,7.98641163]
[1756944866682,11.6372,211.84,211.74,7.98641163]
[1756944868393,11.6372,211.84,211.75,3.90641163]
[1756944872196,7.39,211.84,211.75,3.90641163]
[1756944872697,7.39,211.84,211.76,4.08]
[1756944872892,7.39,211.84,211.76,7.98641163]
[1756944874398,7.39,211.84,211.77,4.08]
[1756944874893,7.39,211.84,211.77,7.98641163]
[1756944877597,7.39,211.84,211.78,3.90641163]
[1756944879393,7.39,211.84,211.77,7.98641163]
[1756944879795,7.39,211.84,211.78,7.98641163]
[1756944883998,7.39,211.84,211.76,3.90641163]
[1756944884198,7.39,211.84,211.73,3.90641163]
[1756944884598,4.2484,211.78,211.73,3.90641163]
[1756944884805,7.76,211.83,211.72,3.90641163]
[1756944885102,7.76,211.83,211.71,3.90641163]
[1756944885303,4.2485,211.77,211.7,7.98641163]
[1756944885502,7.76,211.76,211.7,7.98641163]
[1756944885903,12.0087,211.76,211.7,7.98641163]
[1756944886098,7.76,211.76,211.7,3.90641163]
[1756944886300,7.76,211.76,211.68,3.90641163]
[1756944886802,4.2491,211.74,211.68,3.90641163]
[1756944887193,12.0091,211.74,211.68,3.90641163]
[1756944888303,4.2494,211.73,211.67,3.90641163]
[1756944888505,7.76,211.83,211.67,3.90641163]
[1756944888804,13.08114229,211.83,211.66,3.90641163]
[1756944889004,13.08114229,211.83,211.65,3.90641163]
[1756944889798,13.08114229,211.83,211.59,7.91098448]
[1756944889799,13.08114229,211.8,211.61,3.90641163]
[1756944890004,7.76,211.78,211.61,3.90641163]
[1756944890205,4.2512,211.63,211.6,3.90641163]
[1756944890400,12.0112,211.63,211.6,3.90641163]
[1756944890801,12.0112,211.63,211.59,7.98641163]
[1756944891298,4.2512,211.63,211.59,3.90641163]
[1756944891499,4.2517,211.61,211.57,3.90641163]
[1756944891698,19.54114229,211.78,211.54,5.22125759]
[1756944891699,7.76,211.6,211.54,3.90641163]
[1756944891903,7.76,211.72,211.6,4.08]
[1756944892497,4.2504,211.68,211.6,4.08]
[1756944892703,12.0104,211.68,211.6,4.08]
[1756944893902,7.76,211.68,211.6,4.08]
[1756944894103,7.76,211.68,211.61,3.90641163]
[1756944894897,7.76,211.68,211.62,4.08]
[1756944895108,4.2498,211.71,211.62,4.08]
[1756944896507,7.76,211.7,211.62,4.08]
[1756944900300,4.25,211.69,211.62,4.08]
[1756944900507,7.76,211.76,211.58,4.08]
[1756944900708,7.76,211.76,211.55,3.91680609]
[1756944901204,34.56,211.77,211.55,3.91680609]
[1756944901205,4.2508,211.65,211.55,3.91680609]
[1756944901509,7.76,211.64,211.54,4.08]
[1756944901705,4.252,211.59,211.52,3.91680609]
[1756944901911,7.76,211.58,211.49,138.16899839]
[1756944902205,7.76,211.68,211.49,138.16899839]
[1756944902509,7.76,211.57,211.49,138.16899839]
[1756944903609,12.0124,211.57,211.49,138.16899839]
[1756944903800,7.76,211.56,211.49,134.08899839]
[1756944904005,9.44,211.63,211.49,134.08899839]
[1756944904206,7.76,211.62,211.49,134.08899839]
[1756944904513,9.44,211.63,211.49,134.08899839]
[1756944904708,7.76,211.62,211.49,134.08899839]
[1756944905012,4.2528,211.56,211.49,134.08899839]
[1756944905202,7.76,211.55,211.49,134.08899839]
[1756944906113,7.76,211.53,211.49,134.08899839]
[1756944906310,4.253,211.54,211.49,134.08899839]
[1756944906509,4.2535,211.52,211.49,134.08899839]
[1756944906710,52.46,211.55,211.49,134.08899839]
[1756944907309,7.76,211.54,211.49,134.08899839]
[1756944907710,4.2534,211.52,211.49,134.08899839]
[1756944907910,7.76,211.51,211.49,134.08899839]
[1756944908113,4.2534,211.52,211.49,134.08899839]
[1756944908314,7.76,211.51,211.49,134.08899839]
[1756944908613,4.2534,211.52,211.49,134.08899839]
[1756944909011,12.0138,211.5,211.49,134.08899839]
[1756944909210,12.0138,211.5,211.41,4.08]
[1756944910014,12.0142,211.48,211.41,4.08]
[1756944910314,12.0142,211.48,211.38,434.82]
[1756944910315,52.46,211.55,211.38,117.4]
[1756944910710,7.76,211.55,211.39,4.08]
[1756944911716,12.0136,211.52,211.39,4.08]
[1756944912410,7.76,211.52,211.39,4.08]
[1756944912607,4.253,211.55,211.39,4.08]
[1756944913009,7.59,211.56,211.48,2.41336629]
[1756944913316,4.2524,211.58,211.52,4.08]
[1756944913815,7.59,211.6,211.52,4.08]
[1756944915013,4.252,211.59,211.52,4.08]
[1756944916111,2.41336629,211.63,211.51,2.41336629]
[1756944916312,435.1,211.64,211.48,2.41336629]
[1756944916313,2.41336629,211.6,211.48,2.41336629]
[1756944916618,7.59,211.59,211.48,2.41336629]
[1756944917012,2.41336629,211.6,211.48,2.41336629]
[1756944917212,7.59,211.59,211.48,2.41336629]
[1756944917615,7.59,211.59,211.48,6.49336629]
[1756944917818,4.2531,211.54,211.48,4.08]
[1756944918015,4.2531,211.54,211.41,9.58]
[1756944918016,7.59,211.55,211.44,2.41336629]
[1756944918921,7.59,211.6,211.5,6.49336629]
[1756944919824,4.2524,211.58,211.5,6.49336629]
[1756944920921,7.59,211.6,211.53,2.41336629]
[1756944921123,7.59,211.6,211.53,6.49336629]
[1756944924326,7.59,211.6,211.52,2.41336629]
[1756944924726,7.59,211.6,211.49,4.08]
[1756944924922,4.2522,211.58,211.5,2.41336629]
[1756944925133,7.59,211.6,211.51,4.08]
[1756944925426,7.59,211.6,211.53,2.41336629]
[1756944925630,7.59,211.6,211.51,4.08]
[1756944925829,7.59,211.6,211.5,2.41336629]
[1756944926027,7.59,211.58,211.45,2.41336629]
[1756944926423,2.41336629,211.59,211.45,6.49336629]
[1756944926424,4.2534,211.53,211.45,6.49336629]
[1756944927429,4.2536,211.51,211.45,4.08]
[1756944928933,4.2532,211.53,211.45,4.08]
[1756944929336,7.59,211.54,211.45,4.08]
[1756944930731,33.38,211.6,211.5,2.41336629]
[1756944930936,7.59,211.59,211.5,2.41336629]
[1756944931435,4.2524,211.58,211.5,2.41336629]
[1756944933336,4.2526,211.56,211.5,2.41336629]
[1756944933535,7.59,211.55,211.44,3.91680609]
[1756944933737,7.59,211.55,211.46,2.41336629]
[1756944934232,7.59,211.55,211.46,6.52336629]
[1756944934437,7.59,211.55,211.49,6.52336629]
[1756944935636,4.2522,211.58,211.49,6.52336629]
[1756944935836,4.2522,211.58,211.49,4.11]
[1756944936040,7.59,211.57,211.49,4.11]
[1756944936339,7.59,211.57,211.49,6.52336629]
[1756944937941,11.8424,211.57,211.49,6.52336629]
[1756944944245,11.8424,211.57,211.49,10.44845083]
[1756944944741,7.59,211.57,211.49,10.44845083]
[1756944944944,4.2521,211.59,211.53,4.11]
[1756944945147,7.22,211.63,211.52,2.41336629]
[1756944945346,4.2526,211.57,211.52,2.41336629]
[1756944945950,7.22,211.55,211.52,2.41336629]
[1756944946144,353.73336629,211.64,211.49,3.92508454]
[1756944946349,7.22,211.63,211.49,2.41336629]
[1756944946550,7.22,211.63,211.52,2.41336629]
[1756944947653,4.2523,211.58,211.52,2.41336629]
[1756944950361,11.4725,211.57,211.52,6.52336629]
[1756944951555,117.76,211.62,211.5,6.33845083]
[1756944951762,7.22,211.61,211.5,2.41336629]
[1756944952163,7.22,211.54,211.48,3.92508454]
[1756944952866,7.22,211.54,211.47,6.33845083]
[1756944953864,4.2533,211.53,211.47,6.33845083]
[1756944955369,11.4735,211.52,211.48,2.41336629]
[1756944955769,11.4735,211.52,211.48,6.52336629]
[1756944956171,4.2537,211.51,211.48,10.44845083]
[1756944956364,7.22,211.58,211.48,2.41336629]
[1756944956560,7.22,211.58,211.47,3.92508454]
[1756944956767,45.09336629,211.59,211.44,10.44845083]
[1756944956768,4.2541,211.49,211.44,10.44845083]
[1756944956972,11.4741,211.49,211.44,10.44845083]
[1756944957464,11.4741,211.49,211.45,4.11]
[1756944957666,4.2536,211.52,211.46,4.11]
[1756944957863,7.22,211.57,211.45,3.92508454]
[1756944958067,7.22,211.57,211.44,3.92508454]
[1756944958371,7.22,211.52,211.45,4.11]
[1756944958669,7.22,211.52,211.46,2.41336629]
[1756944959367,7.22,211.52,211.46,6.33845083]
[1756944959571,7.22,211.52,211.5,1.54469984]
[1756944959772,33.44,211.57,211.5,1.54469984]
[1756944959974,7.22,211.56,211.5,1.54469984]
[1756944960874,4.2534,211.53,211.5,1.54469984]
[1756944961073,7.22,211.52,211.5,1.54469984]
[1756944961274,4.2534,211.53,211.5,1.54469984]
[1756944961470,4.2535,211.52,211.5,1.54469984]
[1756944961675,46.86469984,211.58,211.49,1.54469984]
[1756944961676,7.22,211.51,211.49,1.54469984]
[1756944961975,7.22,211.55,211.49,1.54469984]
[1756944962671,1.54469984,211.56,211.45,3.92508454]
[1756944962873,7.22,211.53,211.46,1.54469984]
[1756944963876,4.2544,211.48,211.46,1.54469984]
[1756944964073,11.4744,211.48,211.46,1.54469984]
[1756944965969,4.2547,211.46,211.44,1.54469984]
[1756944966169,7.22,211.49,211.45,5.65469984]
[1756944966379,7.22,211.56,211.48,1.54469984]
[1756944966579,4.2538,211.51,211.5,1.54469984]
[1756944966875,4.2538,211.51,211.49,1.54469984]
[1756944967179,11.4738,211.51,211.49,1.54469984]
[1756944969079,11.4738,211.51,211.45,4.11]
[1756944969278,11.4738,211.51,211.49,1.54469984]
[1756944972478,7.79,211.49,211.45,4.11]
[1756944972780,1.54469984,211.55,211.47,1.54469984]
[1756944972982,7.79,211.54,211.47,1.54469984]
[1756944973389,12.0441,211.49,211.47,1.54469984]
[1756944973885,1.54469984,211.53,211.45,1.54469984]
[1756944974086,7.79,211.48,211.39,5.46978438]
[1756944974289,7.79,211.46,211.39,1.54469984]
[1756944974880,12.0458,211.4,211.37,1.54469984]
[1756944976181,7.79,211.39,211.37,1.54469984]
[1756944976581,12.0455,211.42,211.37,5.66469984]
[1756944976779,7.79,211.41,211.37,5.66469984]
[1756944977483,4.2558,211.41,211.37,1.54469984]
[1756944977784,7.79,211.4,211.37,1.54469984]
[1756944977982,4.2558,211.41,211.37,1.54469984]
[1756944978286,4.2558,211.41,211.36,110.26130965]
[1756944978287,1.54469984,211.44,211.36,110.26130965]
[1756944978785,7.79,211.49,211.41,1.54469984]
[1756944979578,7.79,211.43,211.41,1.54469984]
[1756944982287,12.0454,211.43,211.37,4.12]
[1756944982588,7.79,211.47,211.4,1.54469984]
[1756944983481,4.2556,211.42,211.38,1.54469984]
[1756944983688,7.79,211.41,211.38,1.54469984]
[1756944984091,12.0456,211.42,211.38,5.66469984]
[1756944984985,19.51114229,211.56,211.4,1.54469984]
[1756944984986,1.54469984,211.49,211.4,1.54469984]
[1756944985184,7.79,211.48,211.42,1.54469984]
[1756944985884,4.255,211.45,211.42,1.54469984]
[1756944986081,14.19,211.57,211.36,110.26130965]
[1756944986082,1.54469984,211.55,211.44,1.54469984]
[1756944986281,7.79,211.54,211.47,1.54469984]
[1756944987893,4.254,211.5,211.47,1.54469984]
[1756944988093,12.044,211.5,211.47,1.54469984]
[1756944988295,1.54469984,211.55,211.47,1.54469984]
[1756944988490,7.79,211.48,211.47,1.54469984]
[1756944988793,7.79,211.48,211.43,4.12]
[1756944988794,7.79,211.48,211.45,1.54469984]
[1756944988995,7.79,211.48,211.37,4.12]
[1756944989193,7.79,211.48,211.39,1.54469984]
[1756944989786,12.0452,211.44,211.39,5.66469984]
[1756944990699,12.0454,211.43,211.39,5.66469984]
[1756944994203,4.2554,211.43,211.39,1.54469984]
[1756944994392,7.79,211.42,211.39,1.54469984]
[1756944994597,7.79,211.41,211.39,1.54469984]
[1756944995997,1.54469984,211.45,211.37,1.54469984]
[1756944996198,1.54469984,211.45,211.36,110.26130965]
[1756944996199,1.54469984,211.43,211.36,110.26130965]
[1756944996405,15.6,211.5,211.36,110.26130965]
[1756944996406,1.54469984,211.41,211.36,110.26130965]
[1756944996999,7.79,211.4,211.36,110.26130965]
[1756944997198,7.79,211.4,211.32,1.54469984]
[1756944997603,4.2572,211.34,211.32,1.54469984]
[1756944997804,12.0472,211.34,211.32,1.54469984]
[1756944997999,1.54469984,211.41,211.32,1.54469984]
[1756944998201,4.2568,211.36,211.32,1.54469984]
[1756944998404,12.0468,211.36,211.32,1.54469984]
[1756944998605,7.79,211.4,211.32,1.54469984]
[1756944999402,1.54469984,211.37,211.24,317.72]
[1756944999607,7.79,211.36,211.28,1.54469984]
[1756944999802,4.2575,211.32,211.28,1.54469984]
[1756945000308,7.79,211.28,211.26,1.54469984]
[1756945000706,7.79,211.29,211.22,4.12]
[1756945000903,7.79,211.29,211.23,1.54469984]
[1756945001404,7.79,211.29,211.22,4.12]
[1756945001405,7.79,211.29,211.27,1.54469984]
[1756945002702,7.79,211.29,211.26,1.54469984]
[1756945003107,1.54469984,211.34,211.26,1.54469984]
[1756945003108,7.54,211.33,211.26,1.54469984]
[1756945003307,4.2571,211.34,211.28,1.54469984]
[1756945003308,11.7971,211.34,211.28,1.54469984]
[1756945003705,7.54,211.31,211.28,1.54469984]
[1756945004106,4.2575,211.32,211.28,1.54469984]
[1756945004305,7.54,211.31,211.28,1.54469984]
[1756945004504,4.2575,211.32,211.28,1.54469984]
[1756945004710,4.2578,211.3,211.26,1.54469984]
[1756945004904,7.54,211.29,211.26,1.54469984]
[1756945007501,7.54,211.29,211.22,4.13]
[1756945007706,4.2578,211.3,211.26,1.54469984]
[1756945008106,10.64228458,211.53,211.29,1.54469984]
[1756945008107,7.54,211.36,211.29,1.54469984]
[1756945008308,7.54,211.38,211.31,1.54469984]
[1756945008602,7.54,211.34,211.31,1.54469984]
[1756945009213,4.2572,211.34,211.31,1.54469984]
[1756945009613,7.54,211.33,211.31,1.54469984]
[1756945009811,4.2565,211.37,211.31,1.54469984]
[1756945010015,7.54,211.36,211.33,1.54469984]
[1756945010310,7.54,211.42,211.35,1.54469984]
[1756945010511,4.2562,211.39,211.35,1.54469984]
[1756945010717,7.54,211.38,211.35,1.54469984]
[1756945011816,4.2562,211.39,211.35,1.54469984]
[1756945012017,7.54,211.38,211.35,1.54469984]
[1756945012512,4.2565,211.37,211.31,4.13]
[1756945012710,7.54,211.36,211.34,1.54469984]
[1756945012910,4.2565,211.37,211.34,1.54469984]
[1756945013107,7.54,211.36,211.34,1.54469984]
[1756945013514,4.2565,211.37,211.28,4.13]
[1756945013718,7.54,211.36,211.32,1.54469984]
[1756945013918,4.2565,211.37,211.32,1.54469984]
[1756945014318,7.54,211.34,211.31,1.54469984]
[1756945014718,7.54,211.4,211.33,1.54469984]
[1756945014918,7.54,211.42,211.35,1.54469984]
[1756945015213,7.54,211.38,211.34,1.54469984]
[1756945015413,7.54,211.4,211.34,1.54469984]
[1756945015918,4.2566,211.37,211.34,1.54469984]
[1756945016112,4.2566,211.37,211.32,1.54469984]
[1756945016309,7.54,211.36,211.32,1.54469984]
[1756945017510,7.54,211.36,211.34,1.54469984]
[1756945017715,4.2564,211.37,211.34,1.54469984]
[1756945018014,7.54,211.36,211.34,1.54469984]
[1756945018207,4.2564,211.37,211.34,1.54469984]
[1756945018409,7.54,211.36,211.34,1.54469984]
[1756945018817,4.2564,211.37,211.34,1.54469984]
[1756945019017,4.2568,211.35,211.32,1.54469984]
[1756945019209,38.62,211.42,211.28,1.54469984]
[1756945019210,1.54469984,211.37,211.28,1.54469984]
[1756945019413,7.54,211.32,211.22,3.94681278]
[1756945019719,11.7982,211.29,211.21,7.3733421]
[1756945020719,4.2584,211.28,211.21,7.3733421]
[1756945021416,4.2586,211.27,211.21,7.3733421]
[1756945022918,11.7988,211.25,211.21,0.82389289]
[1756945023316,11.7988,211.25,211.18,2.41944921]
[1756945023514,11.7988,211.25,211.18,3.24349818]
[1756945024422,7.54,211.3,211.22,4.13]
[1756945024616,7.98171344,211.45,211.25,4.13]
[1756945024617,7.54,211.37,211.25,4.13]
[1756945025619,4.2574,211.33,211.25,4.13]
[1756945025822,4.2574,211.33,211.27,2.41944921]
[1756945026223,4.2576,211.32,211.27,2.41944921]
[1756945026434,7.54,211.31,211.27,2.41944921]
[1756945026917,2.41944921,211.41,211.28,4.13]
[1756945026918,7.54,211.39,211.28,4.13]
[1756945027112,7.54,211.39,211.28,6.54944921]
[1756945027520,7.54,211.31,211.25,2.41944921]
[1756945028623,7.54,211.31,211.23,6.54944921]
[1756945028918,2.41944921,211.32,211.18,8.90086175]
[1756945029121,2.41944921,211.32,211.18,7.37349818]
[1756945029122,7.54,211.31,211.18,7.37349818]
[1756945029823,7.54,211.31,211.21,2.41944921]
[1756945030323,7.54,211.25,211.21,6.54944921]
[1756945030514,7.54,211.25,211.21,2.41944921]
[1756945030715,7.54,211.33,211.19,2.41944921]
[1756945030922,7.54,211.23,211.19,2.41944921]
[1756945031113,7.54,211.23,211.18,0.82404897]
[1756945031114,7.54,211.23,211.17,4.13]
[1756945031825,4.26,211.2,211.17,4.13]
[1756945032222,7.58,211.27,211.17,4.13]
[1756945033225,4.2596,211.22,211.17,4.13]
[1756945033430,7.58,211.3,211.16,2.41944921]
[1756945034330,4.26,211.2,211.16,2.41944921]
[1756945034830,4.26,211.2,211.16,6.54944921]
[1756945035526,4.2603,211.18,211.14,0.8240197]
[1756945035724,4.2603,211.18,211.12,321.78681278]
[1756945035725,7.58,211.24,211.12,2.41944921]
[1756945036334,2.41944921,211.25,211.12,2.41944921]
[1756945036632,318.06,211.33,211.1,0.82426367]
[1756945036633,7.58,211.24,211.15,2.41944921]
[1756945037021,4.2598,211.21,211.15,2.41944921]
[1756945037530,4.2598,211.21,211.16,2.41944921]
[1756945037729,4.2598,211.21,211.17,4.13]
[1756945040031,7.58,211.24,211.11,2.41944921]
[1756945040727,2.41944921,211.25,211.1,4.95426367]
[1756945040728,4.2606,211.17,211.1,7.37371288]
[1756945043033,4.2609,211.15,211.11,4.13]
[1756945043430,4.2609,211.15,211.1,3.24371288]
[1756945043636,4.2604,211.18,211.11,4.13]
[1756945044133,7.58,211.19,211.11,4.13]
[1756945044636,11.8401,211.19,211.13,2.41944921]
[1756945044836,4.2601,211.19,211.13,2.41944921]
[1756945045839,4.2601,211.19,211.11,4.13]
[1756945046031,11.8401,211.19,211.14,6.54944921]
[1756945046530,7.58,211.24,211.17,2.41944921]
[1756945047231,7.58,211.24,211.2,2.41944921]
[1756945047626,7.58,211.32,211.2,2.41944921]
[1756945048632,4.2586,211.27,211.2,2.41944921]
[1756945050246,4.2581,211.29,211.23,2.41944921]
[1756945050427,4.2581,211.29,211.26,2.41944921]
[1756945050627,4.2581,211.29,211.26,6.54944921]
[1756945051232,11.8376,211.32,211.26,2.41944921]
[1756945054039,11.8371,211.34,211.3,4.13]
[1756945055840,7.58,211.34,211.3,4.13]
[1756945056340,4.2566,211.36,211.29,6.54944921]
[1756945060637,7.58,211.35,211.32,2.41944921]
[1756945061942,4.2571,211.34,211.32,2.41944921]
[1756945062242,7.78,211.33,211.3,2.41944921]
[1756945063544,12.0367,211.36,211.3,6.54944921]
[1756945069848,7.78,211.36,211.33,2.41944921]
[1756945070147,7.78,211.44,211.33,2.41944921]
[1756945070343,4.256,211.4,211.33,2.41944921]
[1756945070548,12.036,211.4,211.33,2.41944921]
[1756945070946,12.036,211.4,211.24,43.74]
[1756945070947,7.78,211.4,211.36,2.41944921]
[1756945071147,7.78,211.4,211.36,6.54944921]
[1756945072847,318.14,211.45,211.39,2.41944921]
[1756945072848,12.035,211.45,211.39,2.41944921]
[1756945073348,7.78,211.44,211.42,2.41944921]
[1756945077853,12.035,211.45,211.42,2.41944921]
[1756945079862,7.78,211.44,211.42,2.41944921]
[1756945080961,4.2544,211.48,211.42,2.41944921]
[1756945081663,4.2544,211.48,211.47,1.54517446]
[1756945081664,12.0344,211.48,211.47,1.54517446]
[1756945081959,7.78,211.44,211.35,4.13]
[1756945082462,7.78,211.47,211.41,1.54517446]
[1756945082964,7.78,211.42,211.41,1.54517446]
[1756945084466,12.036,211.4,211.39,1.54517446]
[1756945084666,12.036,211.4,211.32,4.13]
[1756945084667,7.78,211.44,211.37,1.54517446]
[1756945085862,7.78,211.39,211.37,1.54517446]
[1756945088163,4.2559,211.4,211.37,1.54517446]
[1756945088371,4.2559,211.4,211.39,1.54517446]
[1756945088568,12.0359,211.4,211.39,1.54517446]
[1756945088769,4.2559,211.4,211.37,1.54517446]
[1756945088972,7.78,211.39,211.37,1.54517446]
[1756945089166,4.2559,211.4,211.39,1.54517446]
[1756945089770,7.78,211.41,211.39,1.54517446]
[1756945090269,4.2558,211.41,211.39,1.54517446]
[1756945091669,12.0358,211.41,211.39,1.54517446]
[1756945091867,12.0358,211.41,211.35,4.13]
[1756945092170,12.0358,211.41,211.4,1.54517446]
[1756945092570,4.2558,211.41,211.4,1.54517446]
[1756945092769,11.9058,211.41,211.4,1.54517446]
[1756945101079,4.2553,211.43,211.4,1.54517446]
[1756945101386,4.2553,211.43,211.34,3.90689808]
[1756945101387,11.9053,211.43,211.42,1.54517446]
[1756945101872,4.2553,211.43,211.39,0.03037573]
[1756945102076,7.65,211.42,211.39,0.03037573]
[1756945103083,7.65,211.42,211.41,1.54517446]
[1756945110188,0.03511982,211.44,211.41,1.54517446]
[1756945110388,0.03511982,211.44,211.43,1.54517446]
[1756945110888,7.68511982,211.44,211.43,1.54517446]
[1756945113685,0.03511982,211.44,211.43,1.54517446]
[1756945114084,7.65,211.46,211.43,1.54517446]
[1756945114289,4.254,211.5,211.45,1.54517446]
[1756945114481,11.904,211.5,211.49,1.54517446]
[1756945114685,7.65,211.5,211.49,1.54517446]
[1756945115288,5.32114229,211.6,211.49,1.54517446]
[1756945115486,1.54517446,211.64,211.55,1.54517446]
[1756945115785,7.65,211.63,211.57,1.57703618]
[1756945117893,4.2519,211.6,211.57,1.57703618]
[1756945118393,7.65,211.59,211.57,1.57703618]
[1756945118593,4.2519,211.6,211.57,1.57703618]
[1756945118988,7.65,211.59,211.57,1.57703618]
[1756945119195,4.2519,211.6,211.57,1.57703618]
[1756945119487,7.65,211.58,211.57,1.57703618]